bitfinex-derivatives/quotes_ETHF0:USTF0_20250614
["timestamp","ask_amount","ask_price","bid_price","bid_amount"]
[1749909470517,2.09518,2535.7,2535.6,0.00592335]
[1749909470718,2.73178,2535.7,2535.6,0.00592335]
[1749909472317,2.73178,2535.7,2535.6,0.79433335]
[1749909472518,2.73178,2535.7,2535.6,0.00592335]
[1749909473517,3.81679883,2535.7,2535.6,0.00592335]
[1749909473820,0.7885,2535.3,2535.2,9.4888]
[1749909474022,0.78856,2535.1,2535.0,0.78857]
[1749909475014,0.78863,2534.9,2534.8,0.00592335]
[1749909475218,5.08124129,2534.9,2534.8,0.00592335]
[1749909475414,10.08124129,2534.9,2534.8,0.00592335]
[1749909475610,13.74342617,2534.9,2534.8,0.00592335]
[1749909475812,14.05468468,2534.9,2534.8,0.00592335]
[1749909476012,11.39424129,2534.9,2534.8,0.00592335]
[1749909476516,0.78878,2534.4,2534.3,3.2078]
[1749909476715,1.87359129,2534.4,2534.3,3.2078]
[1749909477421,0.78878,2534.4,2534.3,3.2078]
[1749909480518,1.8857,2534.6,2534.3,3.2078]
[1749909480724,0.78875,2534.5,2534.4,0.78876]
[1749909481419,0.78877,2534.5,2534.4,0.78877]
[1749909481819,0.78878,2534.4,2534.3,3.99661]
[1749909482024,0.78877,2534.5,2534.4,0.78877]
[1749909482912,0.7888,2534.4,2534.3,0.7888]
[1749909483118,0.78883,2534.3,2534.2,0.78882]
[1749909483722,0.7888,2534.4,2534.3,0.7888]
[1749909483926,1.8857,2534.6,2534.1,3.21372335]
[1749909484122,0.78881,2534.4,2534.3,0.7888]
[1749909484927,0.78876,2534.5,2534.4,0.78875]
[1749909485326,0.78874,2534.6,2534.5,0.78875]
[1749909486029,0.78875,2534.5,2534.4,4.06466268]
[1749909486526,0.78874,2534.6,2534.5,0.78873]
[1749909490129,0.78875,2534.5,2534.4,4.06464268]
[1749909490525,0.78875,2534.5,2534.4,3.27589268]
[1749909491930,0.78873,2534.6,2534.4,3.27589268]
[1749909492230,0.78872,2534.7,2534.6,0.7887]
[1749909492931,0.78872,2534.6,2534.5,1.43004]
[1749909495237,0.78871,2534.7,2534.6,0.78869]
[1749909496639,0.78868,2534.8,2534.7,0.78866]
[1749909497940,0.78869,2534.7,2534.6,0.78869]
[1749909498938,0.78875,2534.5,2534.4,3.2078]
[1749909499538,0.78875,2534.5,2534.4,3.99658]
[1749909499735,0.78874,2534.6,2534.5,0.78875]
[1749909500740,0.78874,2534.6,2534.5,1.47775]
[1749909503642,1.08405993,2534.6,2534.5,1.47775]
[1749909504047,0.78872,2534.6,2534.5,1.47775]
[1749909504243,1.87277993,2534.6,2534.5,1.47775]
[1749909506245,0.78872,2534.6,2534.5,1.47775]
[1749909506449,0.78868,2534.8,2534.7,0.78866]
[1749909507142,0.6515,2534.9,2534.7,0.85675268]
[1749909507447,1.44015,2534.9,2534.8,0.78866]
[1749909508043,2.5254781,2534.9,2534.8,0.78866]
[1749909508749,0.78866,2534.8,2534.7,0.85675268]
[1749909509545,1.8739881,2534.8,2534.7,0.85675268]
[1749909509954,1.0853281,2534.8,2534.7,0.85675268]
[1749909510151,1.0853281,2534.8,2534.7,1.50975268]
[1749909510353,1.0853281,2534.8,2534.7,2.78875268]
[1749909511147,1.8739881,2534.8,2534.7,2.78875268]
[1749909511350,1.8739881,2534.8,2534.7,2.00009268]
[1749909511648,0.78866,2534.8,2534.7,2.78878268]
[1749909512151,0.78866,2534.8,2534.7,31.29678268]
[1749909513249,0.78864,2534.9,2534.8,0.78862]
[1749909513453,0.78862,2535.0,2534.9,0.78861]
[1749909515357,1.87352705,2535.0,2534.9,0.78861]
[1749909515658,2.6156,2535.2,2534.7,35.68759268]
[1749909515851,0.78858,2535.1,2534.7,37.00909268]
[1749909516153,0.78858,2535.1,2535.0,0.78859]
[1749909516957,0.78862,2535.0,2534.9,0.7886]
[1749909518056,1.97142,2535.1,2534.7,3.27589268]
[1749909518260,0.78862,2534.9,2534.8,7.05765]
[1749909520653,1.87227979,2534.9,2534.8,7.05765]
[1749909521259,1.87227979,2534.9,2534.8,0.78865]
[1749909521562,0.78866,2534.8,2534.7,4.06455268]
[1749909521862,0.6466,2534.8,2534.7,34.49155268]
[1749909522157,0.78861,2535.0,2534.9,0.78859]
[1749909522356,1.87210299,2535.0,2534.9,0.78859]
[1749909524566,0.78865,2534.9,2534.8,0.78864]
[1749909524765,1.87214299,2534.9,2534.8,0.78864]
[1749909526067,1.87207188,2534.9,2534.8,0.78864]
[1749909527268,1.08342188,2534.9,2534.8,0.78864]
[1749909528269,1.87208471,2534.9,2534.8,0.78864]
[1749909530271,1.87208471,2534.9,2534.8,1.48323268]
[1749909530767,1.87208471,2534.9,2534.8,31.27973268]
[1749909533372,1.87208471,2534.9,2534.8,31.21164]
[1749909534372,1.87208471,2534.9,2534.8,31.27973268]
[1749909535370,1.87208471,2534.9,2534.8,31.21164]
[1749909536474,1.87208471,2534.9,2534.8,31.27973268]
[1749909540680,1.87208471,2534.9,2534.8,31.21164]
[1749909543074,1.87208471,2534.9,2534.8,0.78864]
[1749909543279,1.87208471,2534.9,2534.8,24.93564]
[1749909543483,1.87208471,2534.9,2534.8,25.00373268]
[1749909546181,1.08346471,2534.9,2534.8,25.00373268]
[1749909546381,1.87209471,2534.9,2534.8,25.00373268]
[1749909547582,1.87209471,2534.9,2534.8,24.93564]
[1749909548583,1.87209471,2534.9,2534.8,25.00373268]
[1749909549685,1.87209471,2534.9,2534.8,24.93564]
[1749909552579,1.08346471,2534.9,2534.8,26.23444]
[1749909554083,1.87209471,2534.9,2534.8,26.23444]
[1749909554687,1.87209471,2534.9,2534.8,25.00373268]
[1749909554983,1.08346471,2534.9,2534.8,25.00373268]
[1749909555488,1.87209471,2534.9,2534.8,25.00373268]
[1749909556486,1.08346471,2534.9,2534.8,25.00373268]
[1749909557587,1.87208471,2534.9,2534.8,25.00373268]
[1749909558491,1.08346471,2534.9,2534.8,25.00373268]
[1749909558690,1.08346471,2534.9,2534.8,24.93564]
[1749909559190,1.08346471,2534.9,2534.8,28.14344]
[1749909559692,1.08346471,2534.9,2534.8,28.21153268]
[1749909561494,0.78861,2535.0,2534.9,0.78862]
[1749909561693,0.78862,2534.9,2534.8,28.21153268]
[1749909561894,1.08504647,2534.9,2534.8,28.21153268]
[1749909563796,1.08504647,2534.9,2534.8,28.14344]
[1749909564296,1.08504647,2534.9,2534.8,34.40344]
[1749909566102,1.87367647,2534.9,2534.8,34.40344]
[1749909566802,1.87367647,2534.9,2534.8,34.47153268]
[1749909567802,1.87367647,2534.9,2534.8,34.40344]
[1749909568202,1.87447686,2534.9,2534.8,34.40344]
[1749909569402,1.87446686,2534.9,2534.8,34.40344]
[1749909574906,1.87446686,2534.9,2534.8,34.47153268]
[1749909575106,1.08584686,2534.9,2534.8,34.47153268]
[1749909575301,0.00592335,2535.3,2535.2,0.78853]
[1749909575502,0.79442335,2535.3,2535.2,24.91953]
[1749909576408,0.00592335,2535.3,2535.2,24.91953]
[1749909577502,0.00592335,2535.3,2535.2,31.17953]
[1749909578306,0.00592335,2535.3,2535.2,32.42243]
[1749909580714,0.00592335,2535.3,2535.2,33.09763]
[1749909582512,0.00592335,2535.3,2535.2,0.78853]
[1749909582717,0.00592335,2535.3,2535.2,31.16553]
[1749909588519,0.00592335,2535.3,2535.2,24.91453]
[1749909588720,0.00592335,2535.3,2535.2,31.16053]
[1749909590122,0.00592335,2535.3,2535.2,32.52933]
[1749909601330,56.12400335,2535.3,2535.2,32.52933]
[1749909601523,112.46290335,2535.3,2535.2,32.52933]
[1749909602030,112.46290335,2535.3,2535.2,31.16053]
[1749909602928,113.25140335,2535.3,2535.2,0.78853]
[1749909603129,113.25140335,2535.3,2535.2,31.15053]
[1749909603430,112.46290335,2535.3,2535.2,31.15053]
[1749909604429,112.46290335,2535.3,2535.2,31.21862268]
[1749909605228,112.46290335,2535.3,2535.2,31.21762268]
[1749909606335,112.46290335,2535.3,2535.2,31.14953]
[1749909606924,112.46290335,2535.3,2535.2,32.41723]
[1749909607534,112.53099603,2535.3,2535.2,32.41723]
[1749909610932,112.53099603,2535.3,2535.2,32.41423]
[1749909619040,112.53099603,2535.3,2535.2,73.21423]
[1749909625252,112.53099603,2535.3,2535.2,41.58853]
[1749909625547,112.53099603,2535.3,2535.2,71.92853]
[1749909627048,112.53099603,2535.3,2535.2,41.58853]
[1749909627246,112.53099603,2535.3,2535.2,31.12853]
[1749909631752,112.46290335,2535.3,2535.2,31.12853]
[1749909633656,112.46290335,2535.3,2535.2,32.43233]
[1749909635352,112.46290335,2535.3,2535.2,35.64013]
[1749909641743,97.85624198,2535.3,2535.2,34.33633]
[1749909641950,95.31011198,2535.3,2535.2,34.33633]
[1749909642257,91.59856198,2535.3,2535.2,39.57589291]
[1749909642554,89.06792198,2535.3,2535.2,39.57589291]
[1749909642952,88.05318198,2535.3,2535.2,39.57589291]
[1749909643152,85.16845198,2535.3,2535.2,44.57589291]
[1749909643357,85.16845198,2535.3,2535.2,79.05439291]
[1749909643551,85.16845198,2535.3,2535.2,75.11833]
[1749909644356,82.75257198,2535.3,2535.2,75.11833]
[1749909644553,65.68687056,2535.3,2535.2,80.36459291]
[1749909644756,64.56606056,2535.3,2535.2,80.36459291]
[1749909645055,62.21848056,2535.3,2535.2,80.36459291]
[1749909645558,61.05204056,2535.3,2535.2,80.36459291]
[1749909645751,59.92808056,2535.3,2535.2,80.36459291]
[1749909645947,57.36100056,2535.3,2535.2,80.36459291]
[1749909646151,56.26677056,2535.3,2535.2,80.36459291]
[1749909646354,55.17503056,2535.3,2535.2,80.36459291]
[1749909646560,54.05624056,2535.3,2535.2,80.36459291]
[1749909646761,52.91581056,2535.3,2535.2,80.36459291]
[1749909647362,52.05840056,2535.3,2535.2,80.36459291]
[1749909647661,51.26516056,2535.3,2535.2,80.36459291]
[1749909647862,50.39870056,2535.3,2535.2,80.36459291]
[1749909648063,48.73678056,2535.3,2535.2,80.36459291]
[1749909648358,47.87422056,2535.3,2535.2,80.36459291]
[1749909648562,47.01538056,2535.3,2535.2,80.36459291]
[1749909648762,45.91357056,2535.3,2535.2,80.36459291]
[1749909649054,44.88983056,2535.3,2535.2,80.36459291]
[1749909649262,43.22782056,2535.3,2535.2,80.36459291]
[1749909650960,43.22782056,2535.3,2535.2,76.42853]
[1749909651555,43.22782056,2535.3,2535.2,75.11833]
[1749909655358,42.21858056,2535.3,2535.2,75.11833]
[1749909655559,41.40859056,2535.3,2535.2,75.11833]
[1749909655865,40.58376056,2535.3,2535.2,75.11833]
[1749909656061,39.75893056,2535.3,2535.2,75.11833]
[1749909656255,38.83876056,2535.3,2535.2,75.11833]
[1749909656454,37.01214056,2535.3,2535.2,76.40183]
[1749909656854,36.10726056,2535.3,2535.2,76.40183]
[1749909657054,35.31463056,2535.3,2535.2,76.40183]
[1749909657265,35.38272324,2535.3,2535.2,76.40183]
[1749909657765,34.57663324,2535.3,2535.2,76.40183]
[1749909657953,33.71282324,2535.3,2535.2,76.40183]
[1749909658161,33.71282324,2535.3,2535.2,44.79633]
[1749909658374,33.71282324,2535.3,2535.2,75.10733]
[1749909659360,33.64473056,2535.3,2535.2,75.10733]
[1749909662267,33.71282324,2535.3,2535.2,75.10733]
[1749909663267,33.64473056,2535.3,2535.2,75.10733]
[1749909664368,33.71282324,2535.3,2535.2,75.10733]
[1749909666570,33.64473056,2535.3,2535.2,75.10733]
[1749909667668,33.64473056,2535.3,2535.2,79.04339291]
[1749909669372,33.71282324,2535.3,2535.2,79.04339291]
[1749909670371,33.64473056,2535.3,2535.2,79.04339291]
[1749909672270,33.64473056,2535.3,2535.2,102.88939291]
[1749909673374,14.60432444,2535.3,2535.2,102.88939291]
[1749909673569,10.61400751,2535.3,2535.2,98.95333]
[1749909675974,9.36038751,2535.3,2535.2,98.95333]
[1749909676174,6.24222498,2535.3,2535.2,100.28413]
[1749909677276,6.24222498,2535.3,2535.2,98.94433]
[1749909677479,6.31031766,2535.3,2535.2,98.94433]
[1749909682581,6.24222498,2535.3,2535.2,98.94433]
[1749909683582,6.31031766,2535.3,2535.2,98.94433]
[1749909688177,6.31031766,2535.3,2535.2,102.87031832]
[1749909688377,8.25301766,2535.3,2535.2,98.93133]
[1749909689181,8.25301766,2535.3,2535.2,68.64233]
[1749909689387,8.25301766,2535.3,2535.2,27.84233]
[1749909689584,14.04151766,2535.3,2535.2,3.2078]
[1749909689780,14.04151766,2535.3,2535.1,6.223]
[1749909689781,0.78853,2535.2,2535.1,6.223]
[1749909689985,8.13171576,2535.2,2535.1,28.226]
[1749909690375,8.13171576,2535.2,2535.1,4.161]
[1749909690579,8.13171576,2535.2,2535.1,28.2097]
[1749909691174,0.78858,2535.1,2534.9,3.2078]
[1749909691385,0.78859,2535.0,2534.9,9.4308]
[1749909691583,5.78859,2535.0,2534.9,33.4948]
[1749909693087,5.0,2535.0,2534.6,9.4318]
[1749909693393,0.78869,2534.7,2534.6,3.2078]
[1749909693579,0.78872,2534.6,2534.5,6.224]
[1749909693778,2.15072,2534.6,2534.5,30.29]
[1749909693988,6.362,2534.6,2534.5,31.07875]
[1749909695090,6.362,2534.6,2534.5,30.29]
[1749909696386,6.362,2534.6,2534.5,34.28655]
[1749909696592,6.362,2534.6,2534.5,33.4978]
[1749909697390,6.362,2534.6,2534.5,34.28655]
[1749909698093,6.362,2534.6,2534.5,31.07875]
[1749909698494,2.15072,2534.6,2534.5,33.4978]
[1749909699595,1.362,2534.6,2534.5,33.4978]
[1749909699795,1.362,2534.6,2534.5,34.28655]
[1749909701593,11.42129498,2535.3,2534.8,0.78864]
[1749909701594,0.7886,2535.0,2534.8,0.78864]
[1749909701793,0.7886,2535.0,2534.9,24.07]
[1749909702101,0.7886,2535.0,2534.9,24.13809268]
[1749909702293,5.7886,2535.0,2534.9,24.13809268]
[1749909703489,9.45002498,2535.3,2534.9,30.35609268]
[1749909703693,0.78857,2535.1,2535.0,0.78857]
[1749909704211,5.78857,2535.1,2535.0,0.78857]
[1749909704503,10.23855498,2535.3,2535.2,0.78853]
[1749909704810,0.78853,2535.2,2535.1,24.85855]
[1749909705310,5.78853,2535.2,2535.1,24.85855]
[1749909705505,0.78853,2535.2,2535.1,24.07]
[1749909706609,0.78853,2535.2,2535.1,24.85856]
[1749909707109,7.03073498,2535.3,2535.2,0.78853]
[1749909707409,7.03073498,2535.3,2535.1,24.85855]
[1749909707804,6.24222498,2535.3,2535.2,0.78853]
[1749909708299,7.03072498,2535.3,2535.2,0.78853]
[1749909708906,7.03072498,2535.3,2535.1,24.85854]
[1749909709308,0.78853,2535.2,2535.1,24.07]
[1749909709911,0.78853,2535.2,2535.1,24.85856]
[1749909710512,0.78853,2535.2,2535.1,24.07]
[1749909716417,0.78853,2535.2,2535.1,24.85856]
[1749909716819,6.24222498,2535.3,2535.1,24.07]
[1749909717012,7.03072498,2535.3,2535.2,0.6305]
[1749909719121,6.24222498,2535.3,2535.2,1.41903]
[1749909719312,6.24222498,2535.3,2535.2,2.70573]
[1749909721113,7.03072498,2535.3,2535.2,1.9172]
[1749909721318,7.03072498,2535.3,2535.2,2.70573]
[1749909722017,7.03072498,2535.3,2535.2,1.9172]
[1749909722220,7.03072498,2535.3,2535.2,0.6305]
[1749909723217,7.03072498,2535.3,2535.2,3.8383]
[1749909724120,6.24222498,2535.3,2535.2,3.8383]
[1749909724328,6.24222498,2535.3,2535.2,4.62683]
[1749909724819,7.03072498,2535.3,2535.2,3.8383]
[1749909725020,6.24222498,2535.3,2535.2,4.62683]
[1749909725217,6.24222498,2535.3,2535.2,5.87573]
[1749909727012,7.03072498,2535.3,2535.2,10.0553]
[1749909727211,7.03072498,2535.3,2535.2,34.1133]
[1749909727414,6.24222498,2535.3,2535.2,34.1133]
[1749909727722,6.24222498,2535.3,2535.2,34.90183]
[1749909729019,6.24222498,2535.3,2535.2,3.8383]
[1749909729219,6.24222498,2535.3,2535.2,34.1123]
[1749909729619,6.24222498,2535.3,2535.2,34.90083]
[1749909731119,6.24222498,2535.3,2535.2,34.89983]
[1749909736521,6.24222498,2535.3,2535.2,10.84383]
[1749909736719,6.24222498,2535.3,2535.2,34.89683]
[1749909741812,6.24222498,2535.3,2535.2,35.2180576]
[1749909742626,6.24222498,2535.3,2535.2,40.2180576]
[1749909743525,6.24222498,2535.3,2535.2,35.2180576]
[1749909749029,6.24222498,2535.3,2535.2,34.88283]
[1749909753636,6.31031766,2535.3,2535.2,34.88283]
[1749909755738,6.24222498,2535.3,2535.2,34.88283]
[1749909756739,6.31031766,2535.3,2535.2,34.88283]
[1749909757739,6.24222498,2535.3,2535.2,34.88283]
[1749909758740,6.31031766,2535.3,2535.2,34.88283]
[1749909759939,6.31031766,2535.3,2535.2,10.83583]
[1749909760241,6.31031766,2535.3,2535.2,34.87783]
[1749909764935,6.24222498,2535.3,2535.2,34.87783]
[1749909767949,6.31031766,2535.3,2535.2,34.87783]
[1749909769540,6.31031766,2535.3,2535.2,4.62683]
[1749909769740,6.31031766,2535.3,2535.2,34.86783]
[1749909770843,6.31031766,2535.3,2535.2,4.62683]
[1749909771050,6.31031766,2535.3,2535.2,34.86683]
[1749909773553,6.31031766,2535.3,2535.2,4.62683]
[1749909773754,6.31031766,2535.3,2535.2,34.86683]
[1749909775550,5.32363766,2535.3,2535.2,34.86683]
[1749909775754,0.00592335,2535.5,2535.4,0.78847]
[1749909776047,0.00592335,2535.5,2535.4,24.82447]
[1749909776442,0.00592335,2535.5,2535.4,30.1369088]
[1749909777253,0.00592335,2535.5,2535.4,26.19767]
[1749909778753,3.35e-06,2535.5,2535.4,31.19767]
[1749909778960,3.35e-06,2535.5,2535.4,35.8234088]
[1749909779358,3.35e-06,2535.5,2535.4,31.88417]
[1749909779565,3.35e-06,2535.5,2535.4,35.8234088]
[1749909780251,3.35e-06,2535.5,2535.4,31.88417]
[1749909780451,3.35e-06,2535.5,2535.4,1.47497]
[1749909780651,3.35e-06,2535.5,2535.4,31.02447]
[1749909781559,3.35e-06,2535.5,2535.4,0.78847]
[1749909781761,3.35e-06,2535.5,2535.4,6.99147]
[1749909782151,3.35e-06,2535.5,2535.4,31.02347]
[1749909785162,0.06809603,2535.5,2535.4,31.02347]
[1749909787363,0.06809603,2535.5,2535.4,6.99147]
[1749909787563,0.06809603,2535.5,2535.4,31.02247]
[1749909790071,6.14129149,2535.5,2535.2,24.031]
[1749909790365,3.04639546,2535.4,2535.2,24.031]
[1749909790568,3.23239546,2535.3,2535.2,24.031]
[1749909790869,3.23239546,2535.3,2535.0,0.78858]
[1749909790870,3.877499,2535.3,2535.1,0.78856]
[1749909791167,1.3707,2535.2,2535.0,6.203]
[1749909791372,0.78856,2535.1,2535.0,6.99157]
[1749909792063,2.15925,2535.2,2535.0,31.02257]
[1749909792465,1.3707,2535.1,2535.0,31.02257]
[1749909793162,2.15926,2535.1,2535.0,31.02257]
[1749909793359,0.78859,2535.0,2534.9,3.2078]
[1749909793566,0.78869,2534.7,2534.6,27.2388]
[1749909793765,0.78881,2534.3,2534.2,27.0568]
[1749909794080,0.78881,2534.3,2534.2,33.4428]
[1749909794371,0.78879,2534.4,2534.2,33.4428]
[1749909794569,1.2538,2534.3,2534.2,34.23164]
[1749909794758,1.9051,2534.3,2534.2,34.23164]
[1749909794963,2.69391,2534.3,2534.2,34.23164]
[1749909795166,2.69391,2534.3,2534.2,33.4428]
[1749909795767,2.69391,2534.3,2534.2,34.23164]
[1749909795969,2.69391,2534.3,2534.2,33.4428]
[1749909796272,2.69391,2534.3,2534.2,34.23164]
[1749909796472,2.69391,2534.3,2534.2,33.4428]
[1749909801271,2.69391,2534.3,2534.2,34.23164]
[1749909802370,2.69391,2534.3,2534.2,33.4428]
[1749909803072,2.69391,2534.3,2534.2,34.23164]
[1749909803568,2.69391,2534.3,2534.2,33.4428]
[1749909803767,2.69391,2534.3,2534.2,34.23164]
[1749909804878,2.69391,2534.3,2534.2,33.4428]
[1749909806873,2.69391,2534.3,2534.2,34.23164]
[1749909808477,2.69391,2534.3,2534.2,34.29973268]
[1749909808775,0.78881,2534.3,2534.2,34.29973268]
[1749909809375,1.3776,2534.6,2534.5,0.78875]
[1749909809674,0.78872,2534.6,2534.5,24.82975]
[1749909809877,0.78872,2534.6,2534.5,24.82973]
[1749909811578,0.78872,2534.6,2534.5,24.041]
[1749909811770,0.78872,2534.6,2534.5,24.82975]
[1749909812182,0.78872,2534.6,2534.5,24.041]
[1749909812383,0.78872,2534.6,2534.5,24.82975]
[1749909812677,0.78872,2534.6,2534.5,24.041]
[1749909814375,0.78875,2534.5,2534.4,7.63486]
[1749909814576,0.78875,2534.5,2534.4,31.67386]
[1749909815974,0.78875,2534.5,2534.4,0.6461]
[1749909816184,0.78881,2534.3,2534.2,3.2078]
[1749909816677,0.78881,2534.3,2534.2,27.2468]
[1749909816876,2.08051,2534.3,2534.2,27.2468]
[1749909817785,2.08051,2534.3,2534.2,3.2078]
[1749909817973,2.08051,2534.3,2534.2,27.2468]
[1749909819485,2.08051,2534.3,2534.2,27.2478]
[1749909821179,0.78881,2534.3,2534.2,27.2478]
[1749909821488,0.78881,2534.3,2534.2,28.03664]
[1749909821681,0.78881,2534.3,2534.2,27.2478]
[1749909821984,0.78881,2534.3,2534.2,28.03664]
[1749909822189,0.78881,2534.3,2534.2,27.2478]
[1749909822785,0.78881,2534.3,2534.2,28.03664]
[1749909822986,1.8665024,2534.3,2534.2,28.03664]
[1749909823389,1.8665024,2534.3,2534.2,27.2478]
[1749909823790,1.8665024,2534.3,2534.2,27.2468]
[1749909827092,1.8665024,2534.3,2534.2,3.2078]
[1749909827291,1.8665024,2534.3,2534.2,27.2478]
[1749909828586,1.8665024,2534.3,2534.2,24.04]
[1749909829479,0.78884,2534.2,2534.1,0.00592335]
[1749909829786,0.78884,2534.2,2534.1,24.04492335]
[1749909829787,1.8665324,2534.2,2534.1,24.04492335]
[1749909830288,1.8665324,2534.2,2534.1,0.00592335]
[1749909830590,1.8665324,2534.2,2534.1,24.04492335]
[1749909831288,1.8665324,2534.2,2534.1,0.00592335]
[1749909831488,6.8665324,2534.2,2534.1,0.00592335]
[1749909831693,0.789,2533.7,2533.6,0.6241]
[1749909831992,0.78903,2533.6,2533.5,6.8616]
[1749909832294,0.78903,2533.6,2533.5,31.68966]
[1749909832492,1.86691419,2533.6,2533.5,30.9006]
[1749909832787,0.78903,2533.6,2533.5,6.8626]
[1749909832992,0.78903,2533.6,2533.5,30.9016]
[1749909834392,0.78903,2533.6,2533.5,31.69066]
[1749909835287,0.78903,2533.6,2533.5,30.9016]
[1749909835985,0.78903,2533.6,2533.5,31.69066]
[1749909836495,0.78903,2533.6,2533.5,30.9016]
[1749909838496,0.78903,2533.6,2533.5,31.69066]
[1749909839596,0.78903,2533.6,2533.5,30.9016]
[1749909840598,0.78903,2533.6,2533.5,30.9046]
[1749909840792,0.78903,2533.6,2533.5,0.6636]
[1749909840999,0.78903,2533.6,2533.5,24.7046]
[1749909841202,0.78906,2533.5,2533.4,33.2578]
[1749909841394,0.78906,2533.5,2533.4,57.2988]
[1749909841699,0.78906,2533.5,2533.4,33.2578]
[1749909841903,0.78906,2533.5,2533.4,57.2988]
[1749909842799,0.78906,2533.5,2533.4,3.2078]
[1749909842991,0.78909,2533.4,2533.3,24.73032335]
[1749909843197,2.14139,2533.4,2533.3,0.00592335]
[1749909843399,3.21726048,2533.4,2533.3,0.00592335]
[1749909844898,3.2078,2533.6,2533.3,0.00592335]
[1749909845106,3.99684,2533.6,2533.5,0.78906]
[1749909846101,3.2078,2533.6,2533.5,0.78906]
[1749909846302,3.2078,2533.6,2533.5,2.03266]
[1749909846802,3.99683,2533.6,2533.5,2.03266]
[1749909847004,3.2078,2533.6,2533.5,2.03266]
[1749909847199,3.99683,2533.6,2533.5,2.03266]
[1749909853509,3.99683,2533.6,2533.5,0.78906]
[1749909855011,0.78903,2533.6,2533.5,0.78906]
[1749909855309,0.78903,2533.6,2533.5,6.98906]
[1749909856413,0.78903,2533.6,2533.5,6.2]
[1749909856914,0.78903,2533.6,2533.5,6.98906]
[1749909859620,1.86648582,2533.6,2533.5,6.98906]
[1749909859819,0.78903,2533.6,2533.5,6.98906]
[1749909860014,1.86651788,2533.6,2533.5,6.98906]
[1749909860214,1.07748788,2533.6,2533.3,0.65482335]
[1749909860515,0.78903,2533.6,2533.5,0.06809268]
[1749909860715,1.86716889,2533.6,2533.5,0.06809268]
[1749909862824,1.86716889,2533.6,2533.5,24.10809268]
[1749909863021,3.23376889,2533.6,2533.5,24.10809268]
[1749909864923,3.23376889,2533.6,2533.5,24.89715268]
[1749909865219,1.86716889,2533.6,2533.5,24.89715268]
[1749909866822,1.86716889,2533.6,2533.5,26.19745268]
[1749909868121,1.86716889,2533.6,2533.5,24.89715268]
[1749909869424,1.86716889,2533.6,2533.5,24.10809268]
[1749909873719,1.86716889,2533.6,2533.5,24.89715268]
[1749909874420,1.86716889,2533.6,2533.5,24.10809268]
[1749909874620,1.86716889,2533.6,2533.5,24.89715268]
[1749909874826,1.86716889,2533.6,2533.5,24.10809268]
[1749909876422,1.86853806,2533.6,2533.5,24.10809268]
[1749909876622,1.86853806,2533.6,2533.5,24.89715268]
[1749909876826,1.86853806,2533.6,2533.5,24.10809268]
[1749909877224,1.86853806,2533.6,2533.5,0.06809268]
[1749909877427,1.86853806,2533.6,2533.5,30.30209268]
[1749909884433,1.86853806,2533.6,2533.5,31.09115268]
[1749909884640,1.86853806,2533.6,2533.5,30.30209268]
[1749909885032,1.86853806,2533.6,2533.5,31.09115268]
[1749909885930,1.86853806,2533.6,2533.5,6.26509268]
[1749909886133,0.78903,2533.6,2533.5,30.30009268]
[1749909886630,1.86878477,2533.6,2533.5,30.30009268]
[1749909887324,1.86878477,2533.6,2533.5,31.08915268]
[1749909889033,1.86878477,2533.6,2533.5,30.30009268]
[1749909890236,1.86878477,2533.6,2533.5,31.08915268]
[1749909891638,1.86945004,2533.6,2533.5,31.08915268]
[1749909892135,1.86945004,2533.6,2533.5,30.30009268]
[1749909892937,1.86945004,2533.6,2533.5,31.08915268]
[1749909893738,1.86945004,2533.6,2533.5,31.02106]
[1749909894737,1.86945004,2533.6,2533.5,31.08915268]
[1749909896137,1.08042004,2533.6,2533.5,31.08915268]
[1749909896339,3.35e-06,2533.8,2533.7,0.789]
[1749909896526,3.35e-06,2533.8,2533.7,28.34009728]
[1749909896732,3.35e-06,2533.8,2533.7,74.14009728]
[1749909896931,3.35e-06,2533.8,2533.7,74.81379728]
[1749909897130,3.35e-06,2533.8,2533.7,34.01379728]
[1749909897639,3.35e-06,2533.8,2533.7,74.81379728]
[1749909898638,3.35e-06,2533.8,2533.7,34.8965]
[1749909899342,0.78903,2533.6,2533.5,0.78903]
[1749909899633,0.78903,2533.6,2533.5,0.6585]
[1749909899941,0.78903,2533.6,2533.5,30.8815]
[1749909903441,0.78903,2533.6,2533.5,6.8515]
[1749909903647,0.78903,2533.6,2533.5,30.8815]
[1749909903942,0.78903,2533.6,2533.5,30.94959268]
[1749909904945,0.78903,2533.6,2533.5,30.8815]
[1749909905945,0.78903,2533.6,2533.5,6.91959268]
[1749909906145,0.78903,2533.6,2533.5,30.29109268]
[1749909906846,1.46513,2533.6,2533.5,30.29109268]
[1749909907046,0.78906,2533.5,2533.4,10.18987]
[1749909907343,2.07646,2533.5,2533.4,34.21987]
[1749909907546,2.07646,2533.5,2533.4,3.99687]
[1749909908045,2.07646,2533.5,2533.4,34.21987]
[1749909908446,2.07646,2533.5,2533.4,10.18987]
[1749909908648,2.07646,2533.5,2533.4,34.21987]
[1749909908946,2.07646,2533.5,2533.4,33.4308]
[1749909910346,2.07646,2533.5,2533.4,34.21989]
[1749909911240,3.35e-06,2533.8,2533.4,35.40352]
[1749909911438,3.35e-06,2533.8,2533.7,0.789]
[1749909911638,3.35e-06,2533.8,2533.7,28.0268]
[1749909911845,3.35e-06,2533.8,2533.7,33.0268]
[1749909913140,3.35e-06,2533.8,2533.7,34.2742]
[1749909914251,3.35e-06,2533.8,2533.7,37.42209681]
[1749909914637,3.35e-06,2533.8,2533.7,34.2742]
[1749909915242,3.35e-06,2533.8,2533.7,78.21630275]
[1749909918151,3.35e-06,2533.8,2533.7,75.0742]
[1749909921552,3.35e-06,2533.8,2533.7,51.0442]
[1749909921749,3.35e-06,2533.8,2533.7,76.2542]
[1749909921953,3.35e-06,2533.8,2533.7,35.4542]
[1749909923355,3.35e-06,2533.8,2533.7,40.52229268]
[1749909927251,3.35e-06,2533.8,2533.7,40.4542]
[1749909927657,3.35e-06,2533.8,2533.7,35.4542]
[1749909930361,3.35e-06,2533.8,2533.7,35.52229268]
[1749909931461,3.35e-06,2533.8,2533.7,35.4542]
[1749909931960,3.35e-06,2533.8,2533.7,40.4542]